[Event "Late-Titled-Tuesday-Blitz-January-16-2024"]
[Site "Chess.com"]
[Date "2024.01.16"]
[Round "1"]
[White "wadsy27"]
[Black "JCVanDamme10"]
[Result "0-1"]
[WhiteElo "2615"]
[BlackElo "2325"]
[TimeControl "180+1"]
[EndTime "14:06:51 PST"]
[Termination "JCVanDamme10 won by resignation"]

1. e4 {[%clk 0:02:31.2]} 1... c5 {[%clk 0:03:00.1]} 2. Nf3 {[%clk 0:02:29.4]}
2... e6 {[%clk 0:03:00.6]} 3. c3 {[%clk 0:02:27.8]} 3... d5 {[%clk 0:03:00.1]}
4. exd5 {[%clk 0:02:27.8]} 4... Qxd5 {[%clk 0:03:00.7]} 5. d4 {[%clk 0:02:26.3]}
5... Nc6 {[%clk 0:03:01.1]} 6. Be2 {[%clk 0:02:25]} 6... Nf6 {[%clk 0:03:01.1]}
7. O-O {[%clk 0:02:19]} 7... cxd4 {[%clk 0:03:01.1]} 8. cxd4 {[%clk 0:02:17.3]}
8... Be7 {[%clk 0:03:00.7]} 9. Nc3 {[%clk 0:02:16.8]} 9... Qd6 {[%clk
0:03:01.2]} 10. Nb5 {[%clk 0:02:13.9]} 10... Qb8 {[%clk 0:03:00.2]} 11. g3
{[%clk 0:02:10.5]} 11... Nd5 {[%clk 0:02:57.8]} 12. Bg5 {[%clk 0:02:01]} 12...
a6 {[%clk 0:02:50.3]} 13. Nc3 {[%clk 0:01:32.1]} 13... Bxg5 {[%clk 0:02:29.2]}
14. Nxg5 {[%clk 0:01:14.7]} 14... Nce7 {[%clk 0:02:21.4]} 15. Rc1 {[%clk
0:00:51]} 15... Bd7 {[%clk 0:02:20.5]} 16. Bd3 {[%clk 0:00:46.5]} 16... h6
{[%clk 0:02:14.1]} 17. Qh5 {[%clk 0:00:43]} 17... O-O {[%clk 0:01:51.5]} 18.
Bh7+ {[%clk 0:00:23.1]} 18... Kh8 {[%clk 0:01:50.8]} 19. Nxd5 {[%clk 0:00:21.7]}
19... Nxd5 {[%clk 0:01:46.4]} 20. Nxf7+ {[%clk 0:00:16.7]} 20... Kxh7 {[%clk
0:01:41.6]} 21. Ne5 {[%clk 0:00:16.9]} 21... Be8 {[%clk 0:01:37.4]} 22. Qg4
{[%clk 0:00:17]} 22... Rf5 {[%clk 0:01:03.3]} 23. Qe4 {[%clk 0:00:15.2]} 23...
Nf6 {[%clk 0:00:57.8]} 24. Qd3 {[%clk 0:00:12.3]} 24... Bb5 {[%clk 0:00:56.9]}
25. Qc2 {[%clk 0:00:05.5]} 25... Bxf1 {[%clk 0:00:47.4]} 26. g4 {[%clk
0:00:05.6]} 26... Bh3 {[%clk 0:00:48]} 27. gxf5 {[%clk 0:00:05.1]} 27... Bxf5
{[%clk 0:00:48]} 28. Qc4 {[%clk 0:00:04.9]} 28... Qd6 {[%clk 0:00:44.4]} 29. Rc3
{[%clk 0:00:04.9]} 29... Rf8 {[%clk 0:00:41.9]} 30. Qb3 {[%clk 0:00:04.3]} 30...
b5 {[%clk 0:00:40.4]} 31. Rc6 {[%clk 0:00:03.7]} 31... Qxd4 {[%clk 0:00:39.8]}
32. Qg3 {[%clk 0:00:02.9]} 32... Qd1+ {[%clk 0:00:35.7]} 0-1

[Event "Late-Titled-Tuesday-Blitz-January-16-2024"]
[Site "Chess.com"]
[Date "2024.01.16"]
[Round "1"]
[White "jmpion"]
[Black "Grischuk"]
[Result "0-1"]
[WhiteElo "2523"]
[BlackElo "3088"]
[TimeControl "180+1"]
[EndTime "14:06:54 PST"]
[Termination "Grischuk won by resignation"]

1. e4 {[%clk 0:03:00.9]} 1... e5 {[%clk 0:02:59.5]} 2. Nf3 {[%clk 0:03:01.3]}
2... Nc6 {[%clk 0:02:59.9]} 3. Bb5 {[%clk 0:03:02]} 3... a6 {[%clk 0:02:59.2]}
4. Ba4 {[%clk 0:03:02.3]} 4... Nf6 {[%clk 0:02:58.1]} 5. d3 {[%clk 0:03:02.6]}
5... d6 {[%clk 0:02:56.2]} 6. c3 {[%clk 0:03:02.2]} 6... g6 {[%clk 0:02:56.3]}
7. O-O {[%clk 0:03:02.4]} 7... Bg7 {[%clk 0:02:56.9]} 8. Nbd2 {[%clk 0:03:01.3]}
8... O-O {[%clk 0:02:56.9]} 9. h3 {[%clk 0:03:01.2]} 9... b5 {[%clk 0:02:55.8]}
10. Bb3 {[%clk 0:02:59.1]} 10... Nb8 {[%clk 0:02:50.8]} 11. a4 {[%clk
0:02:58.5]} 11... Bb7 {[%clk 0:02:50.7]} 12. Re1 {[%clk 0:02:56.6]} 12... Nbd7
{[%clk 0:02:50.6]} 13. Nf1 {[%clk 0:02:56.8]} 13... Nc5 {[%clk 0:02:45.3]} 14.
Bc2 {[%clk 0:02:56.9]} 14... Nxa4 {[%clk 0:02:39.8]} 15. Bxa4 {[%clk 0:02:53.2]}
15... bxa4 {[%clk 0:02:40.7]} 16. Qxa4 {[%clk 0:02:52.1]} 16... Nd7 {[%clk
0:02:34.9]} 17. Bg5 {[%clk 0:02:48.7]} 17... Qc8 {[%clk 0:02:30.1]} 18. Be3
{[%clk 0:02:38]} 18... Kh8 {[%clk 0:02:04.4]} 19. N1d2 {[%clk 0:02:38.1]} 19...
f5 {[%clk 0:02:03.8]} 20. Nf1 {[%clk 0:01:55.4]} 20... Nf6 {[%clk 0:01:48.8]}
21. Bg5 {[%clk 0:01:40.9]} 21... Nh5 {[%clk 0:01:44.5]} 22. Ng3 {[%clk
0:01:41.5]} 22... Nxg3 {[%clk 0:01:43.4]} 23. fxg3 {[%clk 0:01:42.4]} 23... a5
{[%clk 0:01:21.3]} 24. Qb5 {[%clk 0:01:29.9]} 24... Ba6 {[%clk 0:01:17.7]} 25.
Qd5 {[%clk 0:01:29.6]} 25... Bb7 {[%clk 0:01:17.8]} 26. Qb5 {[%clk 0:01:29.5]}
26... Rb8 {[%clk 0:01:03.3]} 27. Qxa5 {[%clk 0:01:19.7]} 27... h6 {[%clk
0:00:55.6]} 28. Bd2 {[%clk 0:01:16.4]} 28... fxe4 {[%clk 0:00:49.5]} 29. dxe4
{[%clk 0:01:17.3]} 29... Rxf3 {[%clk 0:00:49.3]} 30. gxf3 {[%clk 0:01:17.1]}
30... Qxh3 {[%clk 0:00:49.8]} 31. Kf2 {[%clk 0:01:17.7]} 31... Qh2+ {[%clk
0:00:23.1]} 32. Ke3 {[%clk 0:01:18]} 32... Qxg3 {[%clk 0:00:23.6]} 33. Qxc7
{[%clk 0:01:14.8]} 33... Rf8 {[%clk 0:00:23.7]} 34. Rf1 {[%clk 0:01:11]} 34...
Bxe4 {[%clk 0:00:05.3]} 35. Kxe4 {[%clk 0:01:00.9]} 35... d5+ {[%clk 0:00:05.8]}
36. Kd3 {[%clk 0:00:57]} 36... e4+ {[%clk 0:00:05.8]} 37. Kc2 {[%clk 0:00:57.6]}
37... Qxc7 {[%clk 0:00:05.9]} 38. fxe4 {[%clk 0:00:54.9]} 38... Rxf1 {[%clk
0:00:06.8]} 39. Rxf1 {[%clk 0:00:54.8]} 39... Qc4 {[%clk 0:00:06.6]} 40. exd5
{[%clk 0:00:54.6]} 40... Qxf1 {[%clk 0:00:06.6]} 41. d6 {[%clk 0:00:52.6]} 41...
Qf5+ {[%clk 0:00:07.5]} 42. Kb3 {[%clk 0:00:52.7]} 42... Qd5+ {[%clk 0:00:07.5]}
43. Kc2 {[%clk 0:00:53.6]} 43... Qxd6 {[%clk 0:00:07.9]} 44. b4 {[%clk
0:00:54.5]} 44... g5 {[%clk 0:00:07.6]} 45. c4 {[%clk 0:00:55.4]} 45... g4
{[%clk 0:00:07.1]} 46. Kb3 {[%clk 0:00:56.3]} 46... Qxd2 {[%clk 0:00:06.3]} 0-1

[Event "Late-Titled-Tuesday-Blitz-January-16-2024"]
[Site "Chess.com"]
[Date "2024.01.16"]
[Round "1"]
[White "DraningWaterHi"]
[Black "SanchezKelvin"]
[Result "0-1"]
[WhiteElo "2205"]
[BlackElo "2580"]
[TimeControl "180+1"]
[EndTime "14:06:55 PST"]
[Termination "SanchezKelvin won by resignation"]

1. d4 {[%clk 0:03:00.9]} 1... d5 {[%clk 0:02:51.3]} 2. Bf4 {[%clk 0:02:59.8]}
2... Nf6 {[%clk 0:02:51]} 3. e3 {[%clk 0:03:00.1]} 3... c5 {[%clk 0:02:50.7]} 4.
Nf3 {[%clk 0:02:58.9]} 4... Nc6 {[%clk 0:02:49.5]} 5. c3 {[%clk 0:02:59]} 5...
Qb6 {[%clk 0:02:48.7]} 6. Qb3 {[%clk 0:02:54]} 6... c4 {[%clk 0:02:48.5]} 7. Qc2
{[%clk 0:02:54.4]} 7... Bf5 {[%clk 0:02:48]} 8. Qc1 {[%clk 0:02:54.8]} 8... e6
{[%clk 0:02:48.4]} 9. Nh4 {[%clk 0:02:54.8]} 9... Be4 {[%clk 0:02:46.6]} 10. f3
{[%clk 0:02:54.4]} 10... Bg6 {[%clk 0:02:46.8]} 11. Nxg6 {[%clk 0:02:53.5]}
11... hxg6 {[%clk 0:02:46.8]} 12. Nd2 {[%clk 0:02:54.2]} 12... Nh5 {[%clk
0:02:43.3]} 13. Bg5 {[%clk 0:02:51.9]} 13... Ng3 {[%clk 0:02:40.8]} 14. Rg1
{[%clk 0:02:49.6]} 14... Nxf1 {[%clk 0:02:38.4]} 15. Nxf1 {[%clk 0:02:48]} 15...
Bd6 {[%clk 0:02:33.6]} 16. Bf4 {[%clk 0:02:43.8]} 16... Bxf4 {[%clk 0:02:31.1]}
17. exf4 {[%clk 0:02:43.5]} 17... Rc8 {[%clk 0:02:26.7]} 18. Kf2 {[%clk
0:02:43.1]} 18... Qd8 {[%clk 0:02:19.6]} 19. Qe3 {[%clk 0:02:42]} 19... Ne7
{[%clk 0:02:18.7]} 20. g4 {[%clk 0:02:41]} 20... Qb6 {[%clk 0:02:14.6]} 21. Rb1
{[%clk 0:02:40.5]} 21... a5 {[%clk 0:02:13.8]} 22. a3 {[%clk 0:02:40.4]} 22...
Qd6 {[%clk 0:02:13.6]} 23. Kg2 {[%clk 0:02:39.1]} 23... g5 {[%clk 0:02:09.7]}
24. fxg5 {[%clk 0:02:37.8]} 24... Ng6 {[%clk 0:02:09.5]} 25. Kf2 {[%clk
0:02:28.7]} 25... Nf4 {[%clk 0:02:07.3]} 26. Rg3 {[%clk 0:02:29]} 26... Nd3+
{[%clk 0:02:06.8]} 27. Kg1 {[%clk 0:02:28.4]} 27... b5 {[%clk 0:01:56.5]} 28.
Qe2 {[%clk 0:02:25.8]} 28... Qf4 {[%clk 0:01:52.2]} 29. Qd2 {[%clk 0:02:23.9]}
29... Qd6 {[%clk 0:01:49]} 30. Ne3 {[%clk 0:02:22.3]} 30... Qf4 {[%clk
0:01:47.6]} 31. Nf1 {[%clk 0:02:20.7]} 31... Qd6 {[%clk 0:01:47.3]} 32. Ne3
{[%clk 0:02:20.9]} 32... Kf8 {[%clk 0:01:47.7]} 33. Nc2 {[%clk 0:02:14.2]} 33...
Re8 {[%clk 0:01:38.3]} 34. Ne1 {[%clk 0:02:12.9]} 34... Nf4 {[%clk 0:01:36]} 35.
Ng2 {[%clk 0:02:12.8]} 35... Nh3+ {[%clk 0:01:25.7]} 36. Kf1 {[%clk 0:02:09.6]}
36... e5 {[%clk 0:01:23.4]} 37. Re1 {[%clk 0:02:08.9]} 37... exd4 {[%clk
0:01:17.9]} 38. Rxe8+ {[%clk 0:02:08.6]} 38... Kxe8 {[%clk 0:01:18.2]} 39. Qxd4
{[%clk 0:02:09.5]} 39... Nxg5 {[%clk 0:01:12.4]} 40. Qe3+ {[%clk 0:01:52.9]}
40... Ne6 {[%clk 0:01:11.1]} 41. f4 {[%clk 0:01:52.5]} 41... Kf8 {[%clk
0:01:03.5]} 42. f5 {[%clk 0:01:52.4]} 42... Nc5 {[%clk 0:01:03.6]} 43. Kg1
{[%clk 0:01:46.8]} 43... Ne4 {[%clk 0:01:03.4]} 44. Rh3 {[%clk 0:01:46.5]} 44...
Rxh3 {[%clk 0:01:00.7]} 45. Qxh3 {[%clk 0:01:47.4]} 45... Qc5+ {[%clk
0:01:00.1]} 46. Qe3 {[%clk 0:01:45.9]} 46... Qc7 {[%clk 0:00:50.9]} 47. Qd4
{[%clk 0:01:43.2]} 47... Qd6 {[%clk 0:00:48.6]} 48. Qa7 {[%clk 0:01:18.8]} 48...
Kg8 {[%clk 0:00:42.9]} 49. Qa8+ {[%clk 0:01:07.1]} 49... Kh7 {[%clk 0:00:42.2]}
50. Qa7 {[%clk 0:01:07.6]} 50... f6 {[%clk 0:00:30.5]} 51. Qe3 {[%clk
0:00:57.9]} 51... b4 {[%clk 0:00:26.4]} 52. axb4 {[%clk 0:00:57.9]} 52... axb4
{[%clk 0:00:26.8]} 53. Qh3+ {[%clk 0:00:56.9]} 53... Kg8 {[%clk 0:00:26.5]} 54.
Qe3 {[%clk 0:00:55.6]} 54... bxc3 {[%clk 0:00:26.1]} 55. bxc3 {[%clk 0:00:56.5]}
55... Qa3 {[%clk 0:00:25.3]} 56. Qd4 {[%clk 0:00:55.6]} 56... Qc1+ {[%clk
0:00:22.2]} 0-1

[Event "Late-Titled-Tuesday-Blitz-January-16-2024"]
[Site "Chess.com"]
[Date "2024.01.16"]
[Round "1"]
[White "Perecke"]
[Black "ritanovikova"]
[Result "0-1"]
[WhiteElo "2548"]
[BlackElo "2176"]
[TimeControl "180+1"]
[EndTime "14:06:55 PST"]
[Termination "ritanovikova won on time"]

1. e4 {[%clk 0:02:50.7]} 1... d5 {[%clk 0:02:59.5]} 2. exd5 {[%clk 0:02:50.7]}
2... Qxd5 {[%clk 0:03:00.4]} 3. Nc3 {[%clk 0:02:50.7]} 3... Qd6 {[%clk
0:03:00.9]} 4. Bc4 {[%clk 0:02:49.2]} 4... Nf6 {[%clk 0:03:01]} 5. Nf3 {[%clk
0:02:46.5]} 5... a6 {[%clk 0:03:01]} 6. a4 {[%clk 0:02:41.3]} 6... Bg4 {[%clk
0:03:00.4]} 7. h3 {[%clk 0:02:38.1]} 7... Bh5 {[%clk 0:02:59.9]} 8. g4 {[%clk
0:02:33.5]} 8... Bg6 {[%clk 0:02:58.6]} 9. d4 {[%clk 0:02:30.9]} 9... Nc6 {[%clk
0:02:58.8]} 10. Be3 {[%clk 0:02:14.7]} 10... e6 {[%clk 0:02:57.5]} 11. Ne2
{[%clk 0:01:57.5]} 11... Nb4 {[%clk 0:02:53.7]} 12. Bb3 {[%clk 0:01:42.8]} 12...
Be4 {[%clk 0:02:47]} 13. Nc3 {[%clk 0:01:32]} 13... Bxf3 {[%clk 0:02:20.6]} 14.
Qxf3 {[%clk 0:01:29.3]} 14... Nfd5 {[%clk 0:02:19.4]} 15. Bd2 {[%clk 0:01:12.8]}
15... O-O-O {[%clk 0:02:13.2]} 16. Ne4 {[%clk 0:01:07.5]} 16... Qd7 {[%clk
0:02:07.5]} 17. O-O-O {[%clk 0:01:03.4]} 17... h6 {[%clk 0:01:59.7]} 18. c4
{[%clk 0:01:02.5]} 18... f5 {[%clk 0:01:50.9]} 19. Nc5 {[%clk 0:00:54.8]} 19...
fxg4 {[%clk 0:01:34.6]} 20. hxg4 {[%clk 0:00:53.2]} 20... Bxc5 {[%clk 0:01:32]}
21. dxc5 {[%clk 0:00:54.1]} 21... Rhf8 {[%clk 0:01:29.1]} 22. Qe2 {[%clk
0:00:44.6]} 22... Rxf2 {[%clk 0:01:23.8]} 23. Qe4 {[%clk 0:00:14]} 23... Nf6
{[%clk 0:01:23.4]} 24. Qe3 {[%clk 0:00:13.5]} 24... Nd3+ {[%clk 0:01:18.3]} 25.
Kb1 {[%clk 0:00:12]} 25... Nxg4 {[%clk 0:01:17.6]} 26. Qe4 {[%clk 0:00:10.3]}
26... Nxc5 {[%clk 0:01:09.9]} 27. Qxg4 {[%clk 0:00:07.6]} 27... Nxb3 {[%clk
0:01:07.8]} 28. Be3 {[%clk 0:00:03.1]} 28... Nd2+ {[%clk 0:01:02.1]} 29. Bxd2
{[%clk 0:00:02.5]} 29... Rxd2 {[%clk 0:01:02.2]} 30. Rxd2 {[%clk 0:00:03.4]}
30... Qxd2 {[%clk 0:01:01.7]} 31. Qxe6+ {[%clk 0:00:04.2]} 31... Kb8 {[%clk
0:01:01.8]} 32. Ka1 {[%clk 0:00:03]} 32... Qc2 {[%clk 0:01:00.7]} 33. a5 {[%clk
0:00:01]} 33... Qa4+ {[%clk 0:01:00.1]} 34. Kb1 {[%clk 0:00:01.5]} 34... Qxa5
{[%clk 0:01:00]} 35. Rg1 {[%clk 0:00:01.1]} 35... g5 {[%clk 0:00:59.3]} 36. Qe7
{[%clk 0:00:01.4]} 36... Rd6 {[%clk 0:00:55.8]} 37. Qe8+ {[%clk 0:00:01.2]}
37... Ka7 {[%clk 0:00:56]} 38. Qe3+ {[%clk 0:00:02.1]} 38... b6 {[%clk
0:00:53.6]} 39. Qe7 {[%clk 0:00:01.7]} 39... Qc5 {[%clk 0:00:52.7]} 0-1

[Event "Late-Titled-Tuesday-Blitz-January-16-2024"]
[Site "Chess.com"]
[Date "2024.01.16"]
[Round "1"]
[White "stasOR4ik"]
[Black "FontVella8"]
[Result "0-1"]
[WhiteElo "2413"]
[BlackElo "2742"]
[TimeControl "180+1"]
[EndTime "14:06:56 PST"]
[Termination "FontVella8 won by resignation"]

1. e4 {[%clk 0:03:00.9]} 1... c6 {[%clk 0:02:36.4]} 2. c4 {[%clk 0:02:58.3]}
2... d5 {[%clk 0:02:37.3]} 3. cxd5 {[%clk 0:02:59.1]} 3... cxd5 {[%clk
0:02:08.5]} 4. exd5 {[%clk 0:03:00]} 4... Nf6 {[%clk 0:02:08.3]} 5. Nc3 {[%clk
0:03:00.6]} 5... Nxd5 {[%clk 0:02:08.3]} 6. Bc4 {[%clk 0:02:59.4]} 6... e6
{[%clk 0:02:08.2]} 7. Nf3 {[%clk 0:02:59.3]} 7... Be7 {[%clk 0:02:07.1]} 8. d4
{[%clk 0:02:59.4]} 8... O-O {[%clk 0:02:07.4]} 9. O-O {[%clk 0:02:59.7]} 9...
Nxc3 {[%clk 0:02:07.1]} 10. bxc3 {[%clk 0:02:59.5]} 10... b6 {[%clk 0:02:07.8]}
11. d5 {[%clk 0:02:48.8]} 11... Qc7 {[%clk 0:02:07.3]} 12. Qe2 {[%clk
0:02:36.2]} 12... exd5 {[%clk 0:02:00.5]} 13. Bxd5 {[%clk 0:02:36.2]} 13... Bb7
{[%clk 0:02:01]} 14. Bxb7 {[%clk 0:02:27.2]} 14... Qxb7 {[%clk 0:02:01.1]} 15.
Bf4 {[%clk 0:02:19.5]} 15... Nc6 {[%clk 0:01:59.2]} 16. Rfe1 {[%clk 0:02:17.1]}
16... Bf6 {[%clk 0:01:58.9]} 17. Rac1 {[%clk 0:02:08.3]} 17... Rad8 {[%clk
0:01:52.7]} 18. h4 {[%clk 0:02:03]} 18... h6 {[%clk 0:01:52.5]} 19. c4 {[%clk
0:01:50.3]} 19... Nd4 {[%clk 0:01:33.9]} 20. Nxd4 {[%clk 0:01:44]} 20... Rxd4
{[%clk 0:01:34.8]} 21. Bg3 {[%clk 0:01:26]} 21... Bxh4 {[%clk 0:01:23.3]} 22.
Be5 {[%clk 0:01:26.2]} 22... Rd7 {[%clk 0:01:10.2]} 23. Qg4 {[%clk 0:01:22.7]}
23... Bg5 {[%clk 0:01:10.3]} 24. f4 {[%clk 0:01:15.8]} 24... f5 {[%clk 0:01:10]}
25. Qg3 {[%clk 0:01:05.9]} 25... Bf6 {[%clk 0:01:06.6]} 26. Bxf6 {[%clk
0:01:03.8]} 26... Rxf6 {[%clk 0:01:07.5]} 27. Re8+ {[%clk 0:01:02.4]} 27... Kh7
{[%clk 0:01:08]} 28. Rce1 {[%clk 0:01:00]} 28... Qc6 {[%clk 0:00:57.9]} 29. R1e7
{[%clk 0:00:45.4]} 29... Rxe7 {[%clk 0:00:41.1]} 30. Rxe7 {[%clk 0:00:46.3]}
30... Rg6 {[%clk 0:00:41.5]} 31. Qh3 {[%clk 0:00:46]} 31... Rxg2+ {[%clk
0:00:25.5]} 32. Qxg2 {[%clk 0:00:31.1]} 32... Qc5+ {[%clk 0:00:25.5]} 33. Kf1
{[%clk 0:00:23.9]} 33... Qxe7 {[%clk 0:00:25.6]} 34. Qd5 {[%clk 0:00:23.4]}
34... Qe4 {[%clk 0:00:23.5]} 35. Qxe4 {[%clk 0:00:16.9]} 35... fxe4 {[%clk
0:00:23.7]} 36. Ke2 {[%clk 0:00:16.1]} 36... Kg6 {[%clk 0:00:24.3]} 37. Ke3
{[%clk 0:00:16.2]} 37... Kf5 {[%clk 0:00:24.9]} 38. a4 {[%clk 0:00:16.3]} 38...
g5 {[%clk 0:00:25.1]} 39. a5 {[%clk 0:00:17]} 39... gxf4+ {[%clk 0:00:25]} 40.
Kd4 {[%clk 0:00:17.7]} 0-1

[Event "Late-Titled-Tuesday-Blitz-January-16-2024"]
[Site "Chess.com"]
[Date "2024.01.16"]
[Round "1"]
[White "waltereador"]
[Black "Emp3rador"]
[Result "0-1"]
[WhiteElo "2273"]
[BlackElo "2620"]
[TimeControl "180+1"]
[EndTime "14:06:59 PST"]
[Termination "Emp3rador won by checkmate"]

1. e4 {[%clk 0:02:54.9]} 1... e6 {[%clk 0:02:59.1]} 2. d4 {[%clk 0:02:53.3]}
2... d5 {[%clk 0:02:59.6]} 3. exd5 {[%clk 0:02:53.8]} 3... exd5 {[%clk
0:02:59.7]} 4. h3 {[%clk 0:02:54.3]} 4... Nf6 {[%clk 0:02:57.8]} 5. Nf3 {[%clk
0:02:54.7]} 5... c5 {[%clk 0:02:57.9]} 6. dxc5 {[%clk 0:02:53.4]} 6... Bxc5
{[%clk 0:02:57.6]} 7. Bd3 {[%clk 0:02:54.3]} 7... O-O {[%clk 0:02:56.4]} 8. O-O
{[%clk 0:02:54.5]} 8... Nc6 {[%clk 0:02:56.6]} 9. Bg5 {[%clk 0:02:52]} 9... Qd6
{[%clk 0:02:51]} 10. Nbd2 {[%clk 0:02:50.3]} 10... h6 {[%clk 0:02:50.3]} 11. Bh4
{[%clk 0:02:50.1]} 11... Be6 {[%clk 0:02:49.3]} 12. Nb3 {[%clk 0:02:50]} 12...
Bb6 {[%clk 0:02:48.9]} 13. Bg3 {[%clk 0:02:50.3]} 13... Qd7 {[%clk 0:02:48.8]}
14. Ne5 {[%clk 0:02:44.9]} 14... Nxe5 {[%clk 0:02:46.9]} 15. Bxe5 {[%clk
0:02:45]} 15... Ne4 {[%clk 0:02:45]} 16. Qf3 {[%clk 0:02:28.2]} 16... Qa4 {[%clk
0:02:33.7]} 17. Bxe4 {[%clk 0:02:11]} 17... dxe4 {[%clk 0:02:32.8]} 18. Qg3
{[%clk 0:02:11.1]} 18... f6 {[%clk 0:02:29]} 19. Bc3 {[%clk 0:02:08.2]} 19...
Rad8 {[%clk 0:02:18.8]} 20. Nd2 {[%clk 0:02:07.6]} 20... Qxc2 {[%clk 0:02:08.9]}
21. Rac1 {[%clk 0:02:03.5]} 21... Qd3 {[%clk 0:02:06.9]} 22. Qxd3 {[%clk
0:02:01.4]} 22... exd3 {[%clk 0:02:02.8]} 23. a3 {[%clk 0:02:01.8]} 23... Rfe8
{[%clk 0:01:59.8]} 24. Rfe1 {[%clk 0:02:02]} 24... Bf7 {[%clk 0:01:54.6]} 25.
Kf1 {[%clk 0:02:00.6]} 25... Bh5 {[%clk 0:01:42.3]} 26. g4 {[%clk 0:01:59.1]}
26... Bg6 {[%clk 0:01:40.9]} 27. Rxe8+ {[%clk 0:01:58.3]} 27... Rxe8 {[%clk
0:01:40.4]} 28. Re1 {[%clk 0:01:59.2]} 28... Rxe1+ {[%clk 0:01:37.7]} 29. Kxe1
{[%clk 0:02:00.1]} 29... Kf7 {[%clk 0:01:37.9]} 30. Nc4 {[%clk 0:01:56.8]} 30...
Bc7 {[%clk 0:01:33.8]} 31. Bd4 {[%clk 0:01:52.8]} 31... b6 {[%clk 0:01:27.4]}
32. Kd2 {[%clk 0:01:52.3]} 32... Ke6 {[%clk 0:01:26.3]} 33. b3 {[%clk
0:01:46.4]} 33... Kd5 {[%clk 0:01:26.1]} 34. Be3 {[%clk 0:01:46]} 34... Ke4
{[%clk 0:01:26.4]} 35. Nb2 {[%clk 0:01:42.7]} 35... Kf3 {[%clk 0:01:23.3]} 36.
Nxd3 {[%clk 0:01:42]} 36... Bxd3 {[%clk 0:01:19.6]} 37. Kxd3 {[%clk 0:01:42.2]}
37... g5 {[%clk 0:01:17.3]} 38. Bd4 {[%clk 0:01:37.9]} 38... Bd8 {[%clk
0:01:17.1]} 39. a4 {[%clk 0:01:35.3]} 39... Kg2 {[%clk 0:01:13.9]} 40. Ke4
{[%clk 0:01:34.7]} 40... Kxh3 {[%clk 0:01:14]} 41. f3 {[%clk 0:01:34.6]} 41...
Kg3 {[%clk 0:01:00.2]} 42. a5 {[%clk 0:01:35]} 42... bxa5 {[%clk 0:00:52.4]} 43.
Bxa7 {[%clk 0:01:35]} 43... Kg2 {[%clk 0:00:43.3]} 44. Bc5 {[%clk 0:01:33.8]}
44... Kg3 {[%clk 0:00:42.7]} 45. Bf8 {[%clk 0:01:33.4]} 45... Kf2 {[%clk
0:00:33.2]} 46. Bxh6 {[%clk 0:01:33.1]} 46... Be7 {[%clk 0:00:33.1]} 47. f4
{[%clk 0:01:30.6]} 47... gxf4 {[%clk 0:00:31.9]} 48. Bxf4 {[%clk 0:01:30.7]}
48... Bd8 {[%clk 0:00:22.5]} 49. Bd6 {[%clk 0:01:27.9]} 49... Ke2 {[%clk
0:00:20.4]} 50. Bc5 {[%clk 0:01:23.4]} 50... Kd2 {[%clk 0:00:19.1]} 51. Bd4
{[%clk 0:01:23.5]} 51... Kc2 {[%clk 0:00:18.1]} 52. Kf5 {[%clk 0:01:23.8]} 52...
Kxb3 {[%clk 0:00:18.2]} 53. Bxf6 {[%clk 0:01:24.3]} 53... Bxf6 {[%clk
0:00:18.1]} 54. Kxf6 {[%clk 0:01:25.2]} 54... a4 {[%clk 0:00:18.8]} 55. g5
{[%clk 0:01:26.1]} 55... a3 {[%clk 0:00:19.5]} 56. g6 {[%clk 0:01:27]} 56... a2
{[%clk 0:00:20.2]} 57. g7 {[%clk 0:01:27.9]} 57... a1=Q+ {[%clk 0:00:20.5]} 58.
Kf7 {[%clk 0:01:28.2]} 58... Qf1+ {[%clk 0:00:20.4]} 59. Ke8 {[%clk 0:01:28.1]}
59... Qe2+ {[%clk 0:00:20.3]} 60. Kf8 {[%clk 0:01:28.6]} 60... Qf3+ {[%clk
0:00:20.6]} 61. Kg8 {[%clk 0:01:29.2]} 61... Kc4 {[%clk 0:00:19.9]} 62. Kh7
{[%clk 0:01:30.1]} 62... Qh5+ {[%clk 0:00:20]} 63. Kg8 {[%clk 0:01:30]} 63...
Kd5 {[%clk 0:00:20.7]} 64. Kf8 {[%clk 0:01:30.7]} 64... Qf5+ {[%clk 0:00:20.7]}
65. Ke8 {[%clk 0:01:30.5]} 65... Qe6+ {[%clk 0:00:20.8]} 66. Kf8 {[%clk
0:01:30.8]} 66... Qf6+ {[%clk 0:00:21]} 67. Kg8 {[%clk 0:01:30.8]} 67... Ke6
{[%clk 0:00:20.9]} 68. Kh8 {[%clk 0:01:31.7]} 68... Kf7 {[%clk 0:00:20.2]} 69.
Kh7 {[%clk 0:01:30.1]} 69... Qxg7# {[%clk 0:00:21.1]} 0-1